[Event "*** Titled Tuesday 3|2 Blitz (Early)"]
[Site "Chess.com"]
[Date "2017.01.03"]
[Round "6"]
[White "Corpescador"]
[Black "Maitreia"]
[Result "1-0"]
[WhiteElo "2445"]
[BlackElo "2457"]
[TimeControl "180+2"]
[EndTime "12:16:22 PST"]
[Termination "Corpescador won by resignation"]

1. e4 {[%clk 0:03:02]} 1... c5 {[%clk 0:03:00.6]} 2. Nf3 {[%clk 0:03:02.9]} 2...
g6 {[%clk 0:03:01.8]} 3. d4 {[%clk 0:03:04.1]} 3... cxd4 {[%clk 0:03:03.7]} 4.
Nxd4 {[%clk 0:03:06]} 4... Nc6 {[%clk 0:03:02.8]} 5. Nc3 {[%clk 0:03:07]} 5...
Nf6 {[%clk 0:03:02.9]} 6. Be3 {[%clk 0:03:07.9]} 6... Bg7 {[%clk 0:03:03.9]} 7.
Bc4 {[%clk 0:03:08.9]} 7... O-O {[%clk 0:03:05.4]} 8. Bb3 {[%clk 0:03:09.9]}
8... a5 {[%clk 0:03:05.7]} 9. O-O {[%clk 0:03:10.5]} 9... a4 {[%clk 0:03:06.5]}
10. Nxa4 {[%clk 0:03:11.7]} 10... Nxe4 {[%clk 0:03:07.3]} 11. Nb5 {[%clk
0:03:11.6]} 11... d5 {[%clk 0:03:08.6]} 12. Bb6 {[%clk 0:03:05.2]} 12... Qd7
{[%clk 0:03:08.2]} 13. Nc7 {[%clk 0:02:46.5]} 13... Rxa4 {[%clk 0:03:05.7]} 14.
Bxa4 {[%clk 0:02:46]} 14... Bxb2 {[%clk 0:03:06.5]} 15. Bb3 {[%clk 0:02:18]}
15... Bxa1 {[%clk 0:03:00.8]} 16. Qxa1 {[%clk 0:02:17]} 16... e6 {[%clk
0:02:44.9]} 17. Rd1 {[%clk 0:02:01]} 17... Ne7 {[%clk 0:02:38.6]} 18. a4 {[%clk
0:01:53.6]} 18... Nf5 {[%clk 0:02:34.4]} 19. a5 {[%clk 0:01:50]} 19... Qc6
{[%clk 0:02:26]} 20. Qe5 {[%clk 0:01:36.3]} 20... Qc3 {[%clk 0:02:18]} 21. Qf4
{[%clk 0:01:24.5]} 21... Bd7 {[%clk 0:02:13.1]} 22. f3 {[%clk 0:01:16.5]} 22...
Nc5 {[%clk 0:02:03]} 23. Bxd5 {[%clk 0:00:59.4]} 23... Qe3+ {[%clk 0:01:34.3]}
24. Qxe3 {[%clk 0:01:00.1]} 24... Nxe3 {[%clk 0:01:36.2]} 25. Bxc5 {[%clk
0:00:48]} 25... Nxd1 {[%clk 0:01:30.9]} 26. Bxb7 {[%clk 0:00:48.9]} 26... Bc8
{[%clk 0:01:12.5]} 27. Bxf8 {[%clk 0:00:37.8]} 27... Bxb7 {[%clk 0:01:13.5]} 28.
Bc5 {[%clk 0:00:36]} 28... Nc3 {[%clk 0:01:08]} 29. a6 {[%clk 0:00:33.1]} 29...
Bc6 {[%clk 0:01:09.3]} 30. a7 {[%clk 0:00:31.3]} 30... Na4 {[%clk 0:01:10.8]}
31. Bd4 {[%clk 0:00:30.7]} 31... Kf8 {[%clk 0:01:08.2]} 32. a8=Q+ {[%clk
0:00:22.7]} 32... Bxa8 {[%clk 0:01:09.3]} 33. Nxa8 {[%clk 0:00:24.6]} 33... Ke7
{[%clk 0:01:11.2]} 34. Nb6 {[%clk 0:00:24.8]} 34... e5 {[%clk 0:01:12.5]} 35.
Nxa4 {[%clk 0:00:23.4]} 35... exd4 {[%clk 0:01:14.4]} 36. Kf2 {[%clk 0:00:24.9]}
36... Kd6 {[%clk 0:01:15.9]} 37. Ke2 {[%clk 0:00:24.8]} 37... Kd5 {[%clk
0:01:17.5]} 38. Kd3 {[%clk 0:00:26]} 38... h5 {[%clk 0:01:19]} 39. h4 {[%clk
0:00:26.5]} 39... f6 {[%clk 0:01:20.1]} 40. Nb2 {[%clk 0:00:27.4]} 40... g5
{[%clk 0:01:21]} 41. g3 {[%clk 0:00:28.7]} 41... f5 {[%clk 0:01:20.5]} 42. f4
{[%clk 0:00:29.1]} 42... gxh4 {[%clk 0:01:20.3]} 43. gxh4 {[%clk 0:00:30.2]}
43... Kc5 {[%clk 0:01:21.5]} 44. Nd1 {[%clk 0:00:30.6]} 44... Kd5 {[%clk
0:01:23.4]} 45. Nf2 {[%clk 0:00:31.5]} 45... Kc5 {[%clk 0:01:24.6]} 46. Nh1
{[%clk 0:00:32.9]} 1-0

[Event "*** Titled Tuesday 3|2 Blitz (Early)"]
[Site "Chess.com"]
[Date "2017.01.03"]
[Round "6"]
[White "pedromartinez91"]
[Black "Pierrebl"]
[Result "0-1"]
[WhiteElo "2324"]
[BlackElo "2473"]
[TimeControl "180+2"]
[EndTime "12:16:39 PST"]
[Termination "Pierrebl won by resignation"]

1. e3 {[%clk 0:03:02]} 1... c5 {[%clk 0:03:02]} 2. Nf3 {[%clk 0:03:03.3]} 2...
g6 {[%clk 0:03:03.9]} 3. g3 {[%clk 0:03:04.6]} 3... Bg7 {[%clk 0:03:05.8]} 4.
Bg2 {[%clk 0:03:06.5]} 4... Nf6 {[%clk 0:03:05.7]} 5. O-O {[%clk 0:03:08.1]}
5... O-O {[%clk 0:03:07.6]} 6. d4 {[%clk 0:03:09.6]} 6... b6 {[%clk 0:03:01.8]}
7. c4 {[%clk 0:03:09.9]} 7... cxd4 {[%clk 0:02:58.8]} 8. Nxd4 {[%clk 0:03:07.9]}
8... d5 {[%clk 0:02:59.8]} 9. cxd5 {[%clk 0:03:08.4]} 9... Nxd5 {[%clk
0:03:01.7]} 10. Nf5 {[%clk 0:02:58]} 10... Bxf5 {[%clk 0:02:45.7]} 11. Qxd5
{[%clk 0:02:57.9]} 11... Na6 {[%clk 0:02:26.7]} 12. Qxa8 {[%clk 0:02:55.9]}
12... Qxa8 {[%clk 0:02:28.6]} 13. Bxa8 {[%clk 0:02:55.5]} 13... Rxa8 {[%clk
0:02:30.5]} 14. Nc3 {[%clk 0:02:55.7]} 14... Nb4 {[%clk 0:02:24.5]} 15. Bd2
{[%clk 0:02:55.9]} 15... Rd8 {[%clk 0:01:06]} 16. e4 {[%clk 0:02:44.1]} 16...
Rxd2 {[%clk 0:01:04.5]} 17. exf5 {[%clk 0:02:44.7]} 17... Rxb2 {[%clk
0:01:05.2]} 18. Rac1 {[%clk 0:02:45.3]} 18... Nd3 {[%clk 0:01:04.5]} 19. Na4
{[%clk 0:02:41.4]} 19... Nxc1 {[%clk 0:01:02.4]} 20. Nxb2 {[%clk 0:02:36.9]}
20... Bxb2 {[%clk 0:01:02.8]} 21. fxg6 {[%clk 0:02:38.5]} 21... hxg6 {[%clk
0:01:04.1]} 22. Re1 {[%clk 0:02:40.1]} 22... e6 {[%clk 0:01:02.5]} 23. Re4
{[%clk 0:02:40.8]} 23... Nd3 {[%clk 0:00:54]} 24. Kf1 {[%clk 0:02:36.1]} 24...
Nc5 {[%clk 0:00:52.1]} 25. Rc4 {[%clk 0:02:36.9]} 25... e5 {[%clk 0:00:50.6]}
26. Ke2 {[%clk 0:02:33.9]} 26... Bd4 {[%clk 0:00:49.9]} 27. h4 {[%clk
0:02:34.9]} 27... f5 {[%clk 0:00:46.7]} 28. f4 {[%clk 0:02:33.5]} 28... Kf7
{[%clk 0:00:48.2]} 29. fxe5 {[%clk 0:02:33]} 29... Bxe5 {[%clk 0:00:50.1]} 30.
Kf3 {[%clk 0:02:34.1]} 30... Ke6 {[%clk 0:00:51.6]} 31. g4 {[%clk 0:02:34.7]}
31... fxg4+ {[%clk 0:00:42.6]} 32. Kxg4 {[%clk 0:02:35.6]} 32... Bf6 {[%clk
0:00:42.7]} 33. Rc2 {[%clk 0:02:36]} 33... a5 {[%clk 0:00:39.6]} 34. Re2+ {[%clk
0:02:35.1]} 34... Kd5 {[%clk 0:00:40.5]} 35. Rf2 {[%clk 0:02:35.7]} 35... Be7
{[%clk 0:00:35.6]} 36. Rf7 {[%clk 0:02:35.8]} 36... Ke6 {[%clk 0:00:34.7]} 37.
Rf2 {[%clk 0:02:32.2]} 37... b5 {[%clk 0:00:35.4]} 38. Re2+ {[%clk 0:02:31.7]}
38... Kd6 {[%clk 0:00:36.7]} 39. Rd2+ {[%clk 0:02:32.6]} 39... Kc6 {[%clk
0:00:37.5]} 40. Re2 {[%clk 0:02:32.5]} 40... Bf6 {[%clk 0:00:32.9]} 41. Rf2
{[%clk 0:02:31.9]} 41... Nd7 {[%clk 0:00:33.9]} 42. Rc2+ {[%clk 0:02:30.3]}
42... Kd5 {[%clk 0:00:34.7]} 43. Rd2+ {[%clk 0:02:31.1]} 43... Bd4 {[%clk
0:00:35.8]} 44. Kg5 {[%clk 0:02:30.8]} 44... Ne5 {[%clk 0:00:37.3]} 45. Rc2
{[%clk 0:02:22]} 45... b4 {[%clk 0:00:37]} 46. Rc8 {[%clk 0:02:23.4]} 46... a4
{[%clk 0:00:37.5]} 47. Ra8 {[%clk 0:02:21.1]} 47... a3 {[%clk 0:00:38.3]} 48.
Rc8 {[%clk 0:02:15.4]} 48... Bc3 {[%clk 0:00:39.5]} 49. Kf6 {[%clk 0:02:13.3]}
49... Ke4 {[%clk 0:00:36.6]} 50. Kg5 {[%clk 0:02:10.4]} 50... Kd3 {[%clk
0:00:36.1]} 51. Rf8 {[%clk 0:02:09]} 51... Kc2 {[%clk 0:00:36.5]} 52. Rf2+
{[%clk 0:02:09.3]} 52... Kb1 {[%clk 0:00:37.5]} 53. Rg2 {[%clk 0:02:08.9]} 53...
Bb2 {[%clk 0:00:35.7]} 54. Rg4 {[%clk 0:01:53.9]} 54... Nxg4 {[%clk 0:00:36.4]}
55. Kxg6 {[%clk 0:01:54.4]} 55... Kxa2 {[%clk 0:00:37.7]} 0-1

[Event "*** Titled Tuesday 3|2 Blitz (Early)"]
[Site "Chess.com"]
[Date "2017.01.03"]
[Round "6"]
[White "Izoria123"]
[Black "Krutoy123"]
[Result "0-1"]
[WhiteElo "2409"]
[BlackElo "2493"]
[TimeControl "180+2"]
[EndTime "12:16:59 PST"]
[Termination "Krutoy123 won by resignation"]

1. Nf3 {[%clk 0:03:02]} 1... Nf6 {[%clk 0:03:00.4]} 2. c4 {[%clk 0:03:02.6]}
2... g6 {[%clk 0:03:01.3]} 3. g3 {[%clk 0:03:03.3]} 3... Bg7 {[%clk 0:03:01.9]}
4. Bg2 {[%clk 0:03:05.2]} 4... O-O {[%clk 0:03:02.8]} 5. O-O {[%clk 0:03:06.5]}
5... d6 {[%clk 0:03:03.5]} 6. Nc3 {[%clk 0:03:07.1]} 6... Nc6 {[%clk 0:03:04.4]}
7. d4 {[%clk 0:03:06.2]} 7... Bd7 {[%clk 0:02:51.6]} 8. b3 {[%clk 0:02:47.9]}
8... Rb8 {[%clk 0:02:42.2]} 9. Bb2 {[%clk 0:02:43.3]} 9... a6 {[%clk 0:02:43.3]}
10. Nd5 {[%clk 0:02:42.8]} 10... Nxd5 {[%clk 0:02:38.6]} 11. cxd5 {[%clk
0:02:43.2]} 11... Nb4 {[%clk 0:02:39.6]} 12. Ne1 {[%clk 0:02:34.1]} 12... c6
{[%clk 0:02:37]} 13. dxc6 {[%clk 0:02:34.6]} 13... Bxc6 {[%clk 0:02:32.6]} 14.
Qd2 {[%clk 0:02:35.2]} 14... Qb6 {[%clk 0:02:28.8]} 15. Nf3 {[%clk 0:02:22.3]}
15... Rfc8 {[%clk 0:02:22.6]} 16. Rfc1 {[%clk 0:02:15.7]} 16... Bxf3 {[%clk
0:02:18.6]} 17. Bxf3 {[%clk 0:02:09.5]} 17... Rxc1+ {[%clk 0:02:19.1]} 18. Rxc1
{[%clk 0:01:57]} 18... Nxa2 {[%clk 0:02:20.2]} 19. Rc4 {[%clk 0:01:57.7]} 19...
Qxb3 {[%clk 0:02:15.2]} 20. Rc7 {[%clk 0:01:33.9]} 20... Bf6 {[%clk 0:02:11.7]}
21. g4 {[%clk 0:01:08.7]} 21... Qb6 {[%clk 0:02:05.1]} 22. Rd7 {[%clk
0:00:59.7]} 22... Qb5 {[%clk 0:01:53.6]} 23. Rc7 {[%clk 0:01:00]} 23... Nb4
{[%clk 0:01:46.7]} 24. d5 {[%clk 0:00:46.3]} 24... Qa5 {[%clk 0:01:31.5]} 25.
Bxf6 {[%clk 0:00:13]} 25... Qxc7 {[%clk 0:01:25.3]} 26. Bb2 {[%clk 0:00:13.3]}
26... Qc5 {[%clk 0:01:18.5]} 27. Qh6 {[%clk 0:00:12.2]} 27... f6 {[%clk
0:01:16]} 28. g5 {[%clk 0:00:13.5]} 28... Nxd5 {[%clk 0:01:12.5]} 29. gxf6
{[%clk 0:00:08.4]} 29... Nxf6 {[%clk 0:01:09.9]} 30. Qf4 {[%clk 0:00:07.1]}
30... b5 {[%clk 0:01:03.9]} 31. Bxf6 {[%clk 0:00:06.9]} 31... exf6 {[%clk
0:01:01.8]} 32. Qxf6 {[%clk 0:00:08.8]} 32... Qe5 {[%clk 0:01:00.8]} 33. Qh4
{[%clk 0:00:09.9]} 33... a5 {[%clk 0:00:49]} 34. Bg4 {[%clk 0:00:09.2]} 34... b4
{[%clk 0:00:43.9]} 35. Qh3 {[%clk 0:00:09.8]} 35... a4 {[%clk 0:00:37.5]} 36.
Qd3 {[%clk 0:00:08.1]} 36... b3 {[%clk 0:00:33.8]} 37. Qc4+ {[%clk 0:00:09.1]}
37... d5 {[%clk 0:00:29]} 0-1

[Event "*** Titled Tuesday 3|2 Blitz (Early)"]
[Site "Chess.com"]
[Date "2017.01.03"]
[Round "6"]
[White "QuintilianoR"]
[Black "danir29"]
[Result "0-1"]
[WhiteElo "2532"]
[BlackElo "2470"]
[TimeControl "180+2"]
[EndTime "12:17:12 PST"]
[Termination "danir29 won by resignation"]

1. d4 {[%clk 0:03:02]} 1... d6 {[%clk 0:02:55]} 2. e4 {[%clk 0:03:01.2]} 2... g6
{[%clk 0:02:54.9]} 3. Nc3 {[%clk 0:03:02.1]} 3... Bg7 {[%clk 0:02:55.3]} 4. f4
{[%clk 0:03:03.3]} 4... a6 {[%clk 0:02:53.4]} 5. Nf3 {[%clk 0:03:03.6]} 5... b5
{[%clk 0:02:54.2]} 6. Bd3 {[%clk 0:03:05.2]} 6... Bb7 {[%clk 0:02:54.4]} 7. e5
{[%clk 0:02:58.1]} 7... c5 {[%clk 0:02:47.4]} 8. dxc5 {[%clk 0:02:53.2]} 8...
dxc5 {[%clk 0:02:33.1]} 9. Qe2 {[%clk 0:02:53.6]} 9... Nh6 {[%clk 0:02:28.1]}
10. Be4 {[%clk 0:02:46.7]} 10... Qc8 {[%clk 0:02:20.2]} 11. Bxb7 {[%clk
0:02:44.7]} 11... Qxb7 {[%clk 0:02:20.8]} 12. Ne4 {[%clk 0:02:46.3]} 12... Nd7
{[%clk 0:02:19.3]} 13. e6 {[%clk 0:02:37.4]} 13... fxe6 {[%clk 0:02:17.6]} 14.
Neg5 {[%clk 0:02:37.7]} 14... Bf6 {[%clk 0:01:56.5]} 15. Nxe6 {[%clk 0:02:36.6]}
15... Nf5 {[%clk 0:01:53.1]} 16. c3 {[%clk 0:02:34.9]} 16... Rc8 {[%clk
0:01:39.9]} 17. O-O {[%clk 0:02:34]} 17... Rc6 {[%clk 0:01:38.8]} 18. g4 {[%clk
0:02:20.5]} 18... Ng7 {[%clk 0:01:28.6]} 19. Nfg5 {[%clk 0:01:58.1]} 19... Nxe6
{[%clk 0:01:17.9]} 20. Nxe6 {[%clk 0:01:57.4]} 20... Qb6 {[%clk 0:01:18.7]} 21.
f5 {[%clk 0:01:56.7]} 21... gxf5 {[%clk 0:00:59.2]} 22. gxf5 {[%clk 0:01:57.3]}
22... Rg8+ {[%clk 0:00:53.4]} 23. Kh1 {[%clk 0:01:58.1]} 23... Ne5 {[%clk
0:00:54]} 24. Qh5+ {[%clk 0:01:54.8]} 24... Kd7 {[%clk 0:00:49.2]} 25. Bf4
{[%clk 0:01:32.7]} 25... Nd3 {[%clk 0:00:43]} 26. Rad1 {[%clk 0:01:10.2]} 26...
c4 {[%clk 0:00:42.1]} 27. Qf3 {[%clk 0:00:57.8]} 27... Kc8 {[%clk 0:00:36.9]}
28. Bg3 {[%clk 0:00:37.5]} 28... Nxb2 {[%clk 0:00:29.4]} 29. Rd5 {[%clk
0:00:35.5]} 29... Nd3 {[%clk 0:00:29.8]} 30. Nd4 {[%clk 0:00:23.4]} 30... Bxd4
{[%clk 0:00:22.4]} 31. Rxd4 {[%clk 0:00:25.3]} 31... h5 {[%clk 0:00:13.8]} 32.
Qxh5 {[%clk 0:00:20.2]} 32... Rd8 {[%clk 0:00:10.1]} 33. Qg4 {[%clk 0:00:17.8]}
33... Rxd4 {[%clk 0:00:10.3]} 34. Qxd4 {[%clk 0:00:19.7]} 34... Qxd4 {[%clk
0:00:09.4]} 35. cxd4 {[%clk 0:00:20.7]} 35... c3 {[%clk 0:00:10.8]} 36. d5
{[%clk 0:00:22]} 36... Rc4 {[%clk 0:00:11.6]} 37. d6 {[%clk 0:00:23.2]} 37...
Kd7 {[%clk 0:00:10.6]} 38. dxe7 {[%clk 0:00:23.8]} 38... Kxe7 {[%clk 0:00:12.3]}
39. f6+ {[%clk 0:00:25.3]} 39... Kf7 {[%clk 0:00:13.6]} 0-1

[Event "*** Titled Tuesday 3|2 Blitz (Early)"]
[Site "Chess.com"]
[Date "2017.01.03"]
[Round "6"]
[White "AndrBaryshpolets"]
[Black "platy3"]
[Result "1-0"]
[WhiteElo "2443"]
[BlackElo "2610"]
[TimeControl "180+2"]
[EndTime "12:17:14 PST"]
[Termination "AndrBaryshpolets won by resignation"]

1. d4 {[%clk 0:02:24.4]} 1... Nf6 {[%clk 0:02:59.6]} 2. c4 {[%clk 0:02:25.2]}
2... e6 {[%clk 0:03:00.3]} 3. Nf3 {[%clk 0:02:26]} 3... d5 {[%clk 0:03:01.6]} 4.
Nc3 {[%clk 0:02:26.7]} 4... Be7 {[%clk 0:02:55.9]} 5. Bf4 {[%clk 0:02:24.6]}
5... O-O {[%clk 0:02:56.3]} 6. e3 {[%clk 0:02:25.9]} 6... b6 {[%clk 0:02:57.5]}
7. Rc1 {[%clk 0:02:25]} 7... dxc4 {[%clk 0:02:43.7]} 8. Bxc4 {[%clk 0:02:24.7]}
8... a6 {[%clk 0:02:44.6]} 9. O-O {[%clk 0:02:23.6]} 9... Bb7 {[%clk 0:02:44.1]}
10. Qe2 {[%clk 0:02:20.1]} 10... Nbd7 {[%clk 0:02:38.3]} 11. Rfd1 {[%clk
0:02:20.5]} 11... b5 {[%clk 0:02:39.4]} 12. Bd3 {[%clk 0:02:02]} 12... Nh5
{[%clk 0:02:40.6]} 13. Be4 {[%clk 0:01:40]} 13... Nxf4 {[%clk 0:02:33]} 14. exf4
{[%clk 0:01:40.7]} 14... Bxe4 {[%clk 0:02:34.6]} 15. Nxe4 {[%clk 0:01:40.3]}
15... Nf6 {[%clk 0:02:34.4]} 16. Nxf6+ {[%clk 0:01:34]} 16... Bxf6 {[%clk
0:02:36.3]} 17. Qe4 {[%clk 0:01:31.6]} 17... Rb8 {[%clk 0:02:17.4]} 18. g3
{[%clk 0:01:18.5]} 18... Rb6 {[%clk 0:02:17.2]} 19. Ne5 {[%clk 0:01:05.6]} 19...
Rd6 {[%clk 0:02:17.5]} 20. Rc5 {[%clk 0:00:48.4]} 20... Rd5 {[%clk 0:01:52.4]}
21. Rxd5 {[%clk 0:00:44.8]} 21... exd5 {[%clk 0:01:52.7]} 22. Qc2 {[%clk
0:00:42.1]} 22... Qd6 {[%clk 0:01:51.8]} 23. Rc1 {[%clk 0:00:42]} 23... Qb4
{[%clk 0:01:52.9]} 24. Qc3 {[%clk 0:00:38.3]} 24... Qa4 {[%clk 0:01:51.1]} 25.
a3 {[%clk 0:00:28.6]} 25... h6 {[%clk 0:01:52.5]} 26. Qb4 {[%clk 0:00:20.8]}
26... Qxb4 {[%clk 0:01:50.2]} 27. axb4 {[%clk 0:00:22.7]} 27... Be7 {[%clk
0:01:51.8]} 28. Rxc7 {[%clk 0:00:13.5]} 28... Bxb4 {[%clk 0:01:52.8]} 29. Ra7
{[%clk 0:00:14.6]} 29... a5 {[%clk 0:01:45.3]} 30. Nc6 {[%clk 0:00:13.5]} 30...
Rc8 {[%clk 0:01:40.1]} 31. Nxb4 {[%clk 0:00:14.3]} 31... axb4 {[%clk 0:01:41.3]}
32. Rd7 {[%clk 0:00:14.6]} 32... b3 {[%clk 0:01:34.7]} 33. Rxd5 {[%clk
0:00:15.5]} 33... Rc2 {[%clk 0:01:33.1]} 34. Rxb5 {[%clk 0:00:16.9]} 34... Rxb2
{[%clk 0:01:34.8]} 35. Rb8+ {[%clk 0:00:18.1]} 35... Kh7 {[%clk 0:01:35.9]} 36.
d5 {[%clk 0:00:19.7]} 36... Rd2 {[%clk 0:01:36]} 37. Rxb3 {[%clk 0:00:20.4]}
37... Rxd5 {[%clk 0:01:36.9]} 38. Rb6 {[%clk 0:00:20.1]} 38... Rd1+ {[%clk
0:01:36.8]} 39. Kg2 {[%clk 0:00:21.5]} 39... Rd2 {[%clk 0:01:38.7]} 40. g4
{[%clk 0:00:21.8]} 40... Rd4 {[%clk 0:01:39.2]} 41. Kg3 {[%clk 0:00:23.1]} 41...
Rd3+ {[%clk 0:01:40.6]} 42. f3 {[%clk 0:00:24.5]} 42... Ra3 {[%clk 0:01:42.5]}
43. f5 {[%clk 0:00:25.8]} 43... Ra4 {[%clk 0:01:42.9]} 44. h4 {[%clk 0:00:27]}
44... Ra1 {[%clk 0:01:43.5]} 45. g5 {[%clk 0:00:23.9]} 45... hxg5 {[%clk
0:01:44.2]} 46. hxg5 {[%clk 0:00:25.8]} 46... Ra4 {[%clk 0:01:44.2]} 47. Rd6
{[%clk 0:00:25.4]} 47... Rb4 {[%clk 0:01:44.5]} 48. Rd7 {[%clk 0:00:25.9]} 48...
Kg8 {[%clk 0:01:40.6]} 49. Re7 {[%clk 0:00:26.9]} 49... Ra4 {[%clk 0:01:38.7]}
50. Re4 {[%clk 0:00:22.4]} 50... Ra6 {[%clk 0:01:36.9]} 51. Kg4 {[%clk
0:00:23.6]} 51... Kh7 {[%clk 0:01:37.6]} 52. Rd4 {[%clk 0:00:23.4]} 52... Rb6
{[%clk 0:01:38.4]} 53. Rd7 {[%clk 0:00:24.2]} 53... Kg8 {[%clk 0:01:39.1]} 54.
Rd8+ {[%clk 0:00:25.4]} 54... Kh7 {[%clk 0:01:40.1]} 55. Rf8 {[%clk 0:00:26.9]}
55... Rb7 {[%clk 0:01:27.6]} 56. Rxf7 {[%clk 0:00:26.6]} 56... Rxf7 {[%clk
0:01:27.2]} 57. g6+ {[%clk 0:00:27.7]} 57... Kg8 {[%clk 0:01:29.1]} 58. gxf7+
{[%clk 0:00:29.4]} 58... Kxf7 {[%clk 0:01:30.8]} 59. Kg5 {[%clk 0:00:31]} 59...
Kg8 {[%clk 0:01:25.1]} 60. Kg6 {[%clk 0:00:32.9]} 60... Kf8 {[%clk 0:01:26.1]}
61. f6 {[%clk 0:00:34.8]} 61... gxf6 {[%clk 0:01:27.7]} 62. Kxf6 {[%clk
0:00:35.8]} 62... Kg8 {[%clk 0:01:29.6]} 63. f4 {[%clk 0:00:36.9]} 1-0

[Event "*** Titled Tuesday 3|2 Blitz (Early)"]
[Site "Chess.com"]
[Date "2017.01.03"]
[Round "6"]
[White "Firebullet"]
[Black "Kawhi_Leonard2"]
[Result "1-0"]
[WhiteElo "2296"]
[BlackElo "2196"]
[TimeControl "180+2"]
[EndTime "12:17:16 PST"]
[Termination "Firebullet won on time"]

1. d4 {[%clk 0:03:02]} 1... Nf6 {[%clk 0:03:00.1]} 2. c4 {[%clk 0:03:02.6]} 2...
c5 {[%clk 0:03:01.4]} 3. d5 {[%clk 0:03:03.8]} 3... e6 {[%clk 0:03:03.3]} 4. Nc3
{[%clk 0:03:04.7]} 4... exd5 {[%clk 0:03:05.2]} 5. cxd5 {[%clk 0:03:06.6]} 5...
d6 {[%clk 0:03:06.4]} 6. Nf3 {[%clk 0:03:08.2]} 6... g6 {[%clk 0:03:07.8]} 7.
Nd2 {[%clk 0:03:09.8]} 7... Nbd7 {[%clk 0:03:06.9]} 8. Nc4 {[%clk 0:03:03.8]}
8... Nb6 {[%clk 0:03:07.6]} 9. e4 {[%clk 0:02:52.9]} 9... Bg7 {[%clk 0:03:06.9]}
10. Bf4 {[%clk 0:02:49.7]} 10... Nxc4 {[%clk 0:03:07]} 11. Bxc4 {[%clk
0:02:51.6]} 11... a6 {[%clk 0:03:07]} 12. a4 {[%clk 0:02:52]} 12... O-O {[%clk
0:03:05.9]} 13. O-O {[%clk 0:02:52.5]} 13... Re8 {[%clk 0:03:06.3]} 14. Re1
{[%clk 0:02:41.9]} 14... Nh5 {[%clk 0:03:01.5]} 15. Bd2 {[%clk 0:02:36.4]} 15...
Qh4 {[%clk 0:02:51.9]} 16. Qc2 {[%clk 0:02:03.3]} 16... Be5 {[%clk 0:02:30.6]}
17. f4 {[%clk 0:01:37.9]} 17... Nxf4 {[%clk 0:02:05.2]} 18. Bxf4 {[%clk
0:01:37.3]} 18... Qxf4 {[%clk 0:02:03.3]} 19. g3 {[%clk 0:01:37.5]} 19... Bd4+
{[%clk 0:01:51.4]} 20. Kg2 {[%clk 0:01:38]} 20... Qg4 {[%clk 0:01:50.9]} 21. Be2
{[%clk 0:01:28.1]} 21... Qh3+ {[%clk 0:01:46.9]} 22. Kh1 {[%clk 0:01:28.3]}
22... Bg4 {[%clk 0:01:44.5]} 23. Bf1 {[%clk 0:01:19.7]} 23... Qh5 {[%clk
0:01:42.5]} 24. Bg2 {[%clk 0:01:18.7]} 24... f5 {[%clk 0:01:03.8]} 25. Ne2
{[%clk 0:01:13.6]} 25... Bxe2 {[%clk 0:00:43.6]} 26. Rxe2 {[%clk 0:01:06.7]}
26... fxe4 {[%clk 0:00:33.5]} 27. Rxe4 {[%clk 0:01:07.5]} 27... Re5 {[%clk
0:00:29.3]} 28. Rf1 {[%clk 0:01:00.2]} 28... Rae8 {[%clk 0:00:25.5]} 29. Ref4
{[%clk 0:01:01.2]} 29... Re2 {[%clk 0:00:20.7]} 30. Qc1 {[%clk 0:00:35]} 30...
Rxb2 {[%clk 0:00:14.1]} 31. Rxd4 {[%clk 0:00:35.3]} 31... Qe2 {[%clk 0:00:15]}
32. Qxb2 {[%clk 0:00:20.3]} 32... Qxb2 {[%clk 0:00:14.3]} 33. Rdf4 {[%clk
0:00:21.9]} 33... b5 {[%clk 0:00:12.1]} 34. g4 {[%clk 0:00:22.8]} 34... c4
{[%clk 0:00:11.1]} 35. g5 {[%clk 0:00:24]} 35... c3 {[%clk 0:00:10.7]} 36. Bh3
{[%clk 0:00:25.2]} 36... Qe2 {[%clk 0:00:04.1]} 37. Bd7 {[%clk 0:00:23.8]} 1-0

[Event "*** Titled Tuesday 3|2 Blitz (Early)"]
[Site "Chess.com"]
[Date "2017.01.03"]
[Round "6"]
[White "AdrianaNikolova"]
[Black "MrReinberg"]
[Result "1-0"]
[WhiteElo "2272"]
[BlackElo "2054"]
[TimeControl "180+2"]
[EndTime "12:17:21 PST"]
[Termination "AdrianaNikolova won by checkmate"]

1. e4 {[%clk 0:03:01.9]} 1... c5 {[%clk 0:02:06.8]} 2. c3 {[%clk 0:02:05.7]}
2... d5 {[%clk 0:01:59.1]} 3. exd5 {[%clk 0:02:07.6]} 3... Qxd5 {[%clk
0:02:00.5]} 4. d4 {[%clk 0:02:08.2]} 4... Nf6 {[%clk 0:02:01.6]} 5. Nf3 {[%clk
0:02:08.7]} 5... Bg4 {[%clk 0:02:02.4]} 6. Be2 {[%clk 0:02:09.8]} 6... e6 {[%clk
0:02:02.8]} 7. O-O {[%clk 0:02:10.7]} 7... cxd4 {[%clk 0:02:03.5]} 8. cxd4
{[%clk 0:02:10.9]} 8... Bb4 {[%clk 0:02:03.9]} 9. a3 {[%clk 0:02:11.8]} 9... Ba5
{[%clk 0:02:04.8]} 10. b4 {[%clk 0:02:12.9]} 10... Bc7 {[%clk 0:02:05.2]} 11.
Nc3 {[%clk 0:02:14.4]} 11... Qd6 {[%clk 0:02:06.1]} 12. Nb5 {[%clk 0:02:11.7]}
12... Qd7 {[%clk 0:02:06.3]} 13. Nxc7+ {[%clk 0:02:01.7]} 13... Qxc7 {[%clk
0:02:08.2]} 14. h3 {[%clk 0:02:03]} 14... Bh5 {[%clk 0:02:07.6]} 15. Bg5 {[%clk
0:02:03.7]} 15... Nbd7 {[%clk 0:02:06.5]} 16. Rc1 {[%clk 0:02:03.6]} 16... Qd6
{[%clk 0:02:07]} 17. Ne5 {[%clk 0:01:47.4]} 17... Nxe5 {[%clk 0:01:11.5]} 18.
dxe5 {[%clk 0:00:42.6]} 18... Qxd1 {[%clk 0:00:55.8]} 19. Bxd1 {[%clk
0:00:43.3]} 19... Ne4 {[%clk 0:00:20.2]} 20. Ba4+ {[%clk 0:00:21]} 20... Kf8
{[%clk 0:00:19.1]} 21. Be3 {[%clk 0:00:21.4]} 21... f6 {[%clk 0:00:16.3]} 22. f3
{[%clk 0:00:08.3]} 22... Ng3 {[%clk 0:00:16]} 23. Rfd1 {[%clk 0:00:09.4]} 23...
Nf5 {[%clk 0:00:15.5]} 24. Bc5+ {[%clk 0:00:10.3]} 24... Kg8 {[%clk 0:00:15.4]}
25. g4 {[%clk 0:00:11.6]} 25... b6 {[%clk 0:00:13.9]} 26. Bf2 {[%clk 0:00:12]}
26... Bg6 {[%clk 0:00:08.7]} 27. gxf5 {[%clk 0:00:13]} 27... Bxf5 {[%clk
0:00:10.2]} 28. Rc7 {[%clk 0:00:11.8]} 28... h5 {[%clk 0:00:08.4]} 29. Rdd7
{[%clk 0:00:12.5]} 29... Rh7 {[%clk 0:00:07.2]} 30. Bd4 {[%clk 0:00:11.3]} 30...
Bxh3 {[%clk 0:00:03.5]} 31. exf6 {[%clk 0:00:09]} 31... e5 {[%clk 0:00:04.8]}
32. Rxg7+ {[%clk 0:00:08.5]} 32... Rxg7+ {[%clk 0:00:05]} 33. Rxg7+ {[%clk
0:00:10.4]} 33... Kf8 {[%clk 0:00:06.5]} 34. Bxe5 {[%clk 0:00:11]} 34... Rd8
{[%clk 0:00:07.1]} 35. Bb3 {[%clk 0:00:10.3]} 35... Bf5 {[%clk 0:00:04.2]} 36.
Rg8# {[%clk 0:00:10.6]} 1-0